[Event "Romanian-ch Youth Open U18 2024"]
[Site "Eforie Nord"]
[Date "2024.04.18"]
[Round "8.2"]
[White "Nedelcu, Teodor-Cosmin"]
[Black "Creanga, Robert-Ionut"]
[Result "1-0"]
[ECO "E00"]
[WhiteElo "2306"]
[BlackElo "2284"]
[Annotator "TA"]
[PlyCount "121"]
[EventDate "2024.04.10"]
[EventType "swiss"]
[EventCountry "ROU"]
[SourceTitle "playchess.com"]
[Source "ChessBase"]
[SourceQuality "1"]
[TimeControl "5400+30"]

{[%evp 9,121,-14,-13,-24,-8,-19,-17,-24,16,-14,18,25,20,6,0,0,14,27,71,33,101,84,71,73,66,61,220,220,227,242,238,256,238,260,239,239,258,247,228,245,243,265,276,279,502,494,571,518,475,502,506,521,521,514,513,514,512,512,669,717,717,717,717,710,703,672,864,847,821,1010,870,987,858,968,808,979,940,918,1705,1270,1583,1538,1382,1182,29970,29966,29972,29973,29976,29977,29977,29978,29978,29979,29979,29979,29979,29980,29981,29982,29983,29984,29985,29986,29986,29987,29987,29988,29991,29989,29989,29989,29992,29993]} 1. d4 {[%emt 0:09:14]} Nf6 {[%emt 0:00:38]} 2. c4 {[%emt 0:00:07]} e6 {[%emt 0:00:16]} 3. a3 {[%emt 0:00:27]} d5 {[%emt 0:07:00]} 4. Nd2 {[%emt 0:00:34]} c5 {[%emt 0:15:32]} 5. e3 {[%emt 0:03:11]} cxd4 {[%emt 0:05:03]} 6. exd4 {[%emt 0:00:06]} Nc6 {[%emt 0:01:24]} 7. Ngf3 {[%emt 0:00:06]} g6 {[%emt 0:07:31]} 8. b4 {[%emt 0:01:21] The position is equal.} Bg7 {[%emt 0:03:51]} 9. Bb2 {[%emt 0:00:31]} O-O {[%emt 0:01:48]} 10. c5 {[%emt 0:05:31]} a6 {[%emt 0:15:33]} 11. Bd3 {[%emt 0:03:30]} Nh5 {[%emt 0:03:53]} 12. O-O {[%emt 0:00:23]} f6 {[%emt 0:04:13]} 13. Re1 {[%emt 0:00:37]} Re8 {[%emt 0:10:44]} 14. Qb3 {[%emt 0:02:46]} Kh8 {[%emt 0:02:16]} (14... Nf4 $14) 15. a4 {[%emt 0:04:24]} e5 {[%emt 0:01:35]} 16. dxe5 {[%emt 0:01:33]} fxe5 {[%emt 0:00:56]} 17. b5 {[%emt 0:00:50] White is more active.} Na5 {[%emt 0:02:06] This move loses the game for Black.} (17... axb5 $14 18. axb5 Rxa1 19. Rxa1 (19. Bxa1 Na5 $16) 19... e4) 18. Qb4 $1 $18 {[%emt 0:00:24]} e4 {[%emt 0:00:48] [#]} 19. Bxe4 {[%emt 0:00:33][%mdl 512]} dxe4 {[%emt 0:01:29]} 20. Nxe4 {[%emt 0:00:35][%cal Bd2e4,Be4d6,Bd6c4][%mdl 32] Hoping for Nd6.} axb5 {[%emt 0:05:40]} 21. axb5 {[%emt 0:04:28] Nd6 is the strong threat.} Rf8 {[%emt 0:01:23]} 22. Nd6 {[%emt 0:02:15][%cal Of3g5] Black must now prevent Ng5!} Bxb2 {[%emt 0:01:08]} 23. Qxb2+ {[%emt 0:00:29]} Qf6 {[%emt 0:00:29] [#]} 24. Qxf6+ {[%emt 0:04:20]} Nxf6 {[%emt 0:00:27] [#]} 25. Nc4 $1 {[%emt 0:00:07]} Bd7 {[%emt 0:04:06]} 26. Rxa5 {[%emt 0:01:41]} Rac8 $2 {[%emt 0:02:03]} (26... Rxa5 27. Nxa5 Bxb5 28. Nxb7 Rb8) 27. b6 {[%emt 0:00:05]} Bc6 {[%emt 0:01:05]} 28. Nd6 {[%emt 0:00:18]} Ra8 {[%emt 0:00:33]} 29. Rxa8 {[%emt 0:00:41]} Rxa8 {[%emt 0:00:02]} 30. Ne5 {[%emt 0:03:42] Strongly threatening Nxc6.} Bd5 {[%emt 0:00:15]} 31. h3 {[%emt 0:00:09]} Kg7 {[%emt 0:00:39]} 32. Nd3 {[%emt 0:01:01]} Kf8 {[%emt 0:01:07]} 33. Nb4 {[%emt 0:00:37]} Bc6 {[%emt 0:00:25]} 34. Nxc6 {[%emt 0:00:23]} bxc6 {[%emt 0:00:03][%mdl 4096] Endgame. KRN-KRN} 35. Re6 {[%emt 0:00:39]} Nd7 {[%emt 0:00:43]} 36. Ne4 {[%emt 0:00:45]} Rc8 {[%emt 0:00:21]} 37. Kh2 {[%emt 0:01:22]} Kf7 {[%emt 0:00:44]} 38. b7 {[%emt 0:00:20]} Rc7 {[%emt 0:00:26]} 39. Ng5+ {[%emt 0:00:28]} ({But not} 39. Rxc6 $2 Rxc6 40. Kg3 Rc7 $19 (40... Nxc5 $2 {is the wrong capture.} 41. Ng5+ Ke8 42. b8=Q+ $18)) 39... Kf8 {[%emt 0:00:20]} 40. Nxh7+ {[%emt 0:00:06]} Kf7 {[%emt 0:00:21]} 41. Ng5+ {[%emt 0:00:05]} Kf8 {[%emt 0:00:04]} 42. Rxg6 {[%emt 0:00:05] Ne6+ would kill now.} Rxb7 {[%emt 0:00:14]} 43. Rxc6 {[%emt 0:00:06]} Rb5 {[%emt 0:00:52]} 44. Rc7 {[%emt 0:00:15]} Ke8 {[%emt 0:00:16]} 45. c6 {[%emt 0:00:12]} Ne5 {[%emt 0:00:48]} 46. f4 {[%emt 0:00:47]} Ng6 {[%emt 0:00:12]} 47. Rg7 {[%emt 0:00:32] White mates.} Ne7 {[%emt 0:00:32]} 48. Ne4 {[%emt 0:00:19]} Nxc6 {[%emt 0:00:26]} 49. Nd6+ {[%emt 0:00:24]} Kf8 {[%emt 0:00:04]} 50. Nxb5 {[%emt 0:00:21]} Kxg7 {[%emt 0:00:05] KN-KN} 51. g4 {[%emt 0:00:02][%cal Bg2g4,Bg4g5][%mdl 32]} Ne7 {[%emt 0:00:18]} 52. Kg3 {[%emt 0:00:06]} Nd5 {[%emt 0:00:07]} 53. h4 {[%emt 0:00:03][%cal Bh3h4,Bh4h5,Bh5h6,Bh6h7][%mdl 32]} Kg6 {[%emt 0:00:20]} 54. h5+ {[%emt 0:00:07]} Kf6 {[%emt 0:00:12]} 55. Nd4 {[%emt 0:00:04]} Ne3 {[%emt 0:00:10]} 56. g5+ {[%emt 0:00:05]} Kf7 {[%emt 0:00:05]} 57. f5 {[%emt 0:00:06]} Nd5 {[%emt 0:00:09]} 58. h6 {[%emt 0:00:12]} Ne7 {[%emt 0:00:02]} 59. Kf4 {[%emt 0:00:06]} Nd5+ {[%emt 0:00:13]} 60. Ke5 {[%emt 0:00:03]} Ne7 {[%emt 0:00:05]} 61. h7 {[%emt 0:00:42] Weighted Error Value: White=0.06 (flawless) /Black=0.37.  Mistake:       	---       	Black=3      Inaccurate:     	White=2     	Black=4      OK:         	White=15    	Black=9      Best:        	---       	Black=3      Strong:       	White=2     	---} 1-0

[Event "Romanian-ch Youth Open U18 2024"]
[Site "Eforie Nord"]
[Date "2024.04.19"]
[Round "9.1"]
[White "Nedelcu, Teodor-Cosmin"]
[Black "Dinca, Radu"]
[Result "*"]
[ECO "E90"]
[WhiteElo "2306"]
[BlackElo "1929"]
[Annotator "TA"]
[PlyCount "24"]
[EventDate "2024.04.10"]
[EventType "swiss"]
[EventCountry "ROU"]
[SourceTitle "playchess.com"]
[Source "ChessBase"]
[SourceQuality "1"]
[TimeControl "5400+30"]

{[%evp 15,24,30,31,30,29,26,37,39,39,6,35]} 1. d4 {[%emt 0:04:53]} Nf6 {[%emt 0:00:08]} 2. c4 {[%emt 0:00:35]} g6 {[%emt 0:00:17]} 3. Nc3 {[%emt 0:00:43]} Bg7 {[%emt 0:00:47]} 4. e4 {[%emt 0:00:48]} d6 {[%emt 0:00:19]} 5. Nf3 {[%emt 0:00:07]} O-O {[%emt 0:00:27]} 6. Bd3 {[%emt 0:01:12]} e5 {[%emt 0:06:54]} 7. d5 {[%emt 0:01:40]} a5 {[%emt 0:04:04]} 8. h3 {[%emt 0:02:47]} Na6 {[%emt 0:01:26]} 9. O-O {[%emt 0:07:06]} Bd7 {[%emt 0:01:29]} 10. Be3 {[%emt 1:15:39]} c6 {[%emt 0:07:53]} 11. dxc6 {[%emt 0:04:25]} Bxc6 {[%emt 0:02:41]} 12. Nd5 {[%emt 0:00:00]} Nxd5 {[%emt 1:10:05] Black took control after the opening.   Weighted Error Value: White=0.10 (very precise) /Black=0.04 (flawless) .  Inaccurate:     	White=1     	Black=1      OK:         	---       	Black=1} *

[Event "Romanian-ch Youth Open U18 2024"]
[Site "Eforie Nord"]
[Date "2024.04.19"]
[Round "9.1"]
[White "Dinca, Radu"]
[Black "Sachilaru, Alexandru"]
[Result "1/2-1/2"]
[ECO "E90"]
[WhiteElo "1929"]
[BlackElo "2203"]
[Annotator "TA"]
[PlyCount "48"]
[EventDate "2024.04.10"]
[EventType "swiss"]
[EventCountry "ROU"]
[SourceTitle "playchess.com"]
[Source "ChessBase"]
[SourceQuality "1"]
[TimeControl "5400+30"]

{[%evp 15,48,36,32,31,30,41,45,39,46,9,27,18,21,16,35,32,43,33,38,16,16,20,26,23,9,-37,-9,-14,-7,-18,-16,-50,0,0,0]} 1. d4 {[%emt 0:04:53]} Nf6 {[%emt 0:00:08]} 2. c4 {[%emt 0:00:35]} g6 {[%emt 0:00:17]} 3. Nc3 {[%emt 0:00:43]} Bg7 {[%emt 0:00:47]} 4. e4 {[%emt 0:00:48]} d6 {[%emt 0:00:19]} 5. Nf3 {[%emt 0:00:07]} O-O {[%emt 0:00:27]} 6. Bd3 {[%emt 0:01:12]} e5 {[%emt 0:06:54]} 7. d5 {[%emt 0:01:40]} a5 {[%emt 0:04:04]} 8. h3 {[%emt 0:02:47]} Na6 {[%emt 0:01:26]} 9. O-O {[%emt 0:07:06]} Bd7 {[%emt 0:01:29]} 10. Be3 {[%emt 0:03:58]} c6 {[%emt 0:07:53]} 11. dxc6 {[%emt 1:12:11] White is slightly better.} Bxc6 {[%emt 0:02:41]} 12. Nd5 {[%emt 0:00:00]} Nxd5 {[%emt 0:06:21]} 13. cxd5 {[%emt 0:00:00][%cal Od3a6] [#] And now Bxa6! would win.} ({Much weaker is} 13. exd5 Bd7 $15) 13... Bd7 {[%emt 0:00:40]} 14. Qb3 {[%emt 0:00:00][%cal Of1c1]} b5 {[%emt 0:03:26]} 15. Bxb5 {[%emt 0:00:00]} Rb8 {[%emt 0:00:51]} 16. a4 {[%emt 0:00:00]} Nc7 $1 {[%emt 0:01:10][%cal Rc7b5]} 17. Qc3 {[%emt 0:00:00] [#] Bxd7 would now be deadly.} Nxb5 {[%emt 0:00:17]} 18. axb5 {[%emt 0:00:00]} Bxb5 {[%emt 0:00:30]} 19. Rfc1 {[%emt 0:00:00]} a4 {[%emt 0:01:12]} 20. Qc7 {[%emt 0:00:00]} (20. Qa3 $11 {might be stronger.}) 20... h6 {[%emt 0:08:09]} 21. Ba7 {[%emt 0:00:00]} Rc8 {[%emt 0:02:15]} 22. Qxd8 {[%emt 0:00:00]} Rfxd8 {[%emt 0:00:25]} 23. Bb6 {[%emt 0:00:00]} Re8 {[%emt 0:00:36]} (23... Rxc1+ $15 24. Rxc1 Rb8) 24. Bc7 $11 {[%emt 0:00:00]} Bf8 {[%emt 0:00:37] Weighted Error Value: White=0.12 (very precise) /Black=0.11 (very precise) .  Mistake:       	White=1     	Black=1      Inaccurate:     	White=2     	Black=1      OK:         	White=5     	Black=6      Strong:       	---       	Black=1} 1/2-1/2

[Event "Romanian-ch Youth Open U18 2024"]
[Site "Eforie Nord"]
[Date "2024.04.19"]
[Round "9.2"]
[White "Nastore, Pavel-Alexandru"]
[Black "Dobre, Daniel-Alexandru"]
[Result "1-0"]
[ECO "C90"]
[WhiteElo "2189"]
[BlackElo "1834"]
[Annotator "TA"]
[PlyCount "75"]
[EventDate "2024.04.10"]
[EventType "swiss"]
[EventCountry "ROU"]
[SourceTitle "playchess.com"]
[Source "ChessBase"]
[SourceQuality "1"]
[TimeControl "5400+30"]

{[%evp 18,74,51,19,24,10,19,18,21,10,37,33,63,46,82,85,81,77,75,74,79,64,57,34,41,34,25,20,39,10,65,58,58,58,104,96,146,145,221,137,127,118,139,128,631,458,471,444,412,410,29984,29985,29996,29997,29997,29998,29998,29999,29999]} 1. e4 {[%emt 0:00:05]} e5 {[%emt 0:00:05]} 2. Nf3 {[%emt 0:00:05]} Nc6 {[%emt 0:00:05]} 3. Bb5 {[%emt 0:00:04]} a6 {[%emt 0:00:24]} 4. Ba4 {[%emt 0:00:05]} Nf6 {[%emt 0:00:05]} 5. O-O {[%emt 0:00:06]} b5 {[%emt 0:00:28]} 6. Bb3 {[%emt 0:00:06]} Be7 {[%emt 0:00:42]} 7. Re1 {[%emt 0:00:06]} d6 {[%emt 0:00:18]} 8. c3 {[%emt 0:00:16]} Bg4 {[%emt 0:00:36]} 9. d3 {[%emt 0:00:54]} O-O {[%emt 0:01:08]} 10. a4 {[%emt 0:04:17]} b4 {[%emt 0:05:07]} 11. a5 {[%emt 0:05:53]} bxc3 {[%emt 0:14:41]} 12. bxc3 {[%emt 0:00:15]} Rb8 {[%emt 0:00:57] The position is equal.} 13. Nbd2 {[%emt 0:17:22]} d5 {[%emt 0:25:58]} 14. Qc2 {[%emt 0:23:37]} d4 {[%emt 0:21:09]} 15. cxd4 {[%emt 0:01:56]} Nxd4 {[%emt 0:00:26]} 16. Nxd4 {[%emt 0:00:07]} exd4 {[%emt 0:00:38]} 17. Bc4 {[%emt 0:04:15]} Bb4 {[%emt 0:01:02]} 18. Ba3 {[%emt 0:05:01]} Bxa3 {[%emt 0:14:24]} 19. Rxa3 {[%emt 0:00:06][%cal Oa3b3]} Qd6 {[%emt 0:01:31]} 20. Ra2 {[%emt 0:03:26] e5 is the strong threat.} Nd7 {[%emt 0:02:04]} 21. h3 $36 {[%emt 0:01:35][%mdl 2048] White fights for an advantage.} Be6 {[%emt 0:00:46]} 22. Rc1 {[%emt 0:03:20]} c5 {[%emt 0:03:21]} 23. Rf1 {[%emt 0:01:44]} Rb4 {[%emt 0:01:08]} ({Better is} 23... Ne5 $11) 24. f4 $14 {[%emt 0:00:23]} Bxc4 {[%emt 0:00:42]} 25. Nxc4 {[%emt 0:00:10]} Qc7 {[%emt 0:01:29]} (25... Qe6 $14) 26. e5 $16 {[%emt 0:01:18]} Nb8 {[%emt 0:02:12]} (26... Qc6 $142) 27. Nd6 {[%emt 0:02:43]} f6 {[%emt 0:00:41]} (27... Nd7 $16) 28. Re1 {[%emt 0:05:28]} fxe5 {[%emt 0:01:21]} 29. fxe5 {[%emt 0:00:11]} Nd7 {[%emt 0:00:19][%cal Od7e5]} 30. Qe2 {[%emt 0:00:54] Threatens to win with Qe4.} Rd8 $2 {[%emt 0:00:34][%mdl 8192] Loses the game.} (30... Qc6 $16 31. Raa1 h6) 31. Qf3 {[%emt 0:03:23] White wants to mate with Qd5+.} Nxe5 {[%emt 0:00:21] [#]} 32. Qd5+ {[%emt 0:00:14]} Nf7 {[%emt 0:00:07]} 33. Rf2 {[%emt 0:00:10][%cal Rd6f7] Intending Nxf7! and mate. Black is weak on the light squares} Rb1 {[%emt 0:01:33]} (33... Rbb8 $18 34. Qxf7+ Qxf7 35. Nxf7 Rd7) 34. Rxb1 {[%emt 0:00:12][%cal Be1b1,Bb1b8,Bb8d8,Bd8e8][%mdl 32] White mates.} Rxd6 {[%emt 0:00:10] [#]} 35. Qxf7+ $1 {[%emt 0:00:18][%mdl 512]} Qxf7 {[%emt 0:00:08]} 36. Rb8+ {[%emt 0:00:04]} Rd8 {[%emt 0:00:05]} 37. Rxd8+ {[%emt 0:00:04]} Qe8 {[%emt 0:00:07]} 38. Rxe8# {[%emt 0:00:04] Weighted Error Value: White=0.18 (very precise) /Black=0.56.  Loses game:     	---       	Black=1      Mistake:       	---       	Black=5      Inaccurate:     	White=2     	Black=3      OK:         	White=9     	Black=8      Best:        	White=1     	Black=3} 1-0

[Event "Romanian-ch Youth Open U18 2024"]
[Site "Eforie Nord"]
[Date "2024.04.19"]
[Round "9.2"]
[White "Dima, Ioan-Radu"]
[Black "Filip, Andrei"]
[Result "*"]
[ECO "C90"]
[WhiteElo "1913"]
[BlackElo "2299"]
[Annotator "TA"]
[PlyCount "25"]
[EventDate "2024.04.10"]
[EventType "swiss"]
[EventCountry "ROU"]
[SourceTitle "playchess.com"]
[Source "ChessBase"]
[SourceQuality "1"]
[TimeControl "5400+30"]

{[%evp 18,25,35,16,22,32,32,22,27,31]} 1. e4 {[%emt 0:00:05]} e5 {[%emt 0:00:05]} 2. Nf3 {[%emt 0:00:05]} Nc6 {[%emt 0:00:05]} 3. Bb5 {[%emt 1:31:50][%cal Bf1b5,Bb5a4,Ba4b3][%mdl 32]} a6 {[%emt 0:00:24]} 4. Ba4 {[%emt 0:00:05]} Nf6 {[%emt 0:00:05]} 5. O-O {[%emt 0:00:06]} b5 {[%emt 0:00:28]} 6. Bb3 {[%emt 0:00:06]} Be7 {[%emt 0:00:42]} 7. Re1 {[%emt 1:33:29]} d6 {[%emt 0:00:18]} 8. c3 {[%emt 0:00:16]} Bg4 {[%emt 0:00:36]} 9. d3 {[%emt 0:00:54]} O-O {[%emt 0:01:08]} 10. a4 {[%emt 0:04:17]} b4 {[%emt 0:05:07]} 11. a5 {[%emt 0:05:53]} bxc3 {[%emt 0:14:41]} 12. bxc3 {[%emt 1:24:33]} Rb8 {[%emt 0:00:57]} 13. Nbd2 {[%emt 0:17:22] A rather calm draw.   Weighted Error Value: White=0.09 (flawless) /Black=0.02 (flawless) .  OK:         	White=1     	Black=2} *